[Event "Titled Tuesday Blitz August 16 Late 2022"]
[White "Boros, Denes"]
[Black "Nazaretyan, Tigran"]
[WhiteFideId "722340"]
[BlackFideId "24162345"]
[WhiteElo "2464"]
[BlackElo "2183"]
[Result "1-0"]
[Round "07"]
[TimeControl "180+1"]
[Date "2022.08.16"]
[WhiteClock "0:01:05"]
[BlackClock "0:00:32"]

1. Nc3 {[%clk 0:03:00]}  Nf6 {[%clk 0:02:56]} 2. d4 {[%clk 0:03:00]}  d5 {[%clk 0:02:54]} 3. Bf4 {[%clk 0:02:59]}  a6 {[%clk 0:02:47]} 4. Nf3 {[%clk 0:02:59]}  e6 {[%clk 0:02:47]} 5. a3 {[%clk 0:02:57]}  c5 {[%clk 0:02:47]} 6. e3 {[%clk 0:02:57]}  Nc6 {[%clk 0:02:47]} 7. dxc5 {[%clk 0:02:56]}  Bxc5 {[%clk 0:02:46]} 8. Bd3 {[%clk 0:02:57]}  Qe7 {[%clk 0:02:45]} 9. e4 {[%clk 0:02:50]}  d4 {[%clk 0:02:43]} 10. Ne2 {[%clk 0:02:46]}  e5 {[%clk 0:02:42]} 11. Bd2 {[%clk 0:02:44]}  Nh5 {[%clk 0:02:34]} 12. O-O {[%clk 0:02:42]}  O-O {[%clk 0:02:34]} 13. b4 {[%clk 0:02:38]}  Ba7 {[%clk 0:02:30]} 14. Ng3 {[%clk 0:02:32]}  Nxg3 {[%clk 0:02:29]} 15. fxg3 {[%clk 0:02:29]}  h6 {[%clk 0:02:26]} 16. Nh4 {[%clk 0:02:26]}  Be6 {[%clk 0:02:02]} 17. Qh5 {[%clk 0:02:20]}  a5 {[%clk 0:01:36]} 18. bxa5 {[%clk 0:01:37]}  Qd7 {[%clk 0:01:27]} 19. Nf5 {[%clk 0:01:29]}  Bxf5 {[%clk 0:01:25]} 20. exf5 {[%clk 0:01:26]}  e4 {[%clk 0:01:21]} 21. f6 {[%clk 0:01:21]}  e3 {[%clk 0:01:11]} 22. Bf5 {[%clk 0:01:15]}  Qd6 {[%clk 0:01:09]} 23. Qg4 {[%clk 0:01:10]}  g5 {[%clk 0:01:05]} 24. Qh5 {[%clk 0:01:06]}  Qxf6 {[%clk 0:00:32]} 25. Bh7+ {[%clk 0:01:05]}  Kxh7 {[%clk 0:00:32]} 26. Rxf6 {[%clk 0:01:05]}  exd2 {[%clk 0:00:32]} 27. Rxh6+ {[%clk 0:01:05]} 1-0


[Site "https://www.chess.com"]

[Event "Titled Tuesday Blitz August 16 Late 2022"]
[White "Bortnyk, Olexandr"]
[Black "Krzyzanowski, Marcin"]
[WhiteFideId "14120828"]
[BlackFideId "1132199"]
[WhiteElo "2723"]
[BlackElo "2396"]
[Result "1-0"]
[Round "07"]
[TimeControl "180+1"]
[Date "2022.08.16"]
[WhiteClock "0:00:44"]
[BlackClock "0:00:36"]

1. d4 {[%clk 0:03:00]}  c5 {[%clk 0:02:59]} 2. e3 {[%clk 0:03:00]}  cxd4 {[%clk 0:02:59]} 3. exd4 {[%clk 0:03:01]}  d6 {[%clk 0:02:59]} 4. c3 {[%clk 0:03:02]}  g6 {[%clk 0:02:59]} 5. g3 {[%clk 0:03:00]}  Bg7 {[%clk 0:03:00]} 6. Bg2 {[%clk 0:02:57]}  Nf6 {[%clk 0:03:00]} 7. Nf3 {[%clk 0:02:54]}  O-O {[%clk 0:03:00]} 8. O-O {[%clk 0:02:54]}  Nc6 {[%clk 0:03:01]} 9. Re1 {[%clk 0:02:54]}  e5 {[%clk 0:02:58]} 10. Nbd2 {[%clk 0:02:47]}  e4 {[%clk 0:02:55]} 11. Nxe4 {[%clk 0:02:40]}  Nxe4 {[%clk 0:02:46]} 12. Rxe4 {[%clk 0:02:41]}  d5 {[%clk 0:02:47]} 13. Re1 {[%clk 0:02:37]}  h6 {[%clk 0:02:43]} 14. Qb3 {[%clk 0:02:33]}  Kh7 {[%clk 0:02:39]} 15. Bf4 {[%clk 0:02:21]}  Na5 {[%clk 0:02:37]} 16. Qb4 {[%clk 0:02:17]}  Nc4 {[%clk 0:02:37]} 17. Ne5 {[%clk 0:02:16]}  a5 {[%clk 0:02:34]} 18. Qb5 {[%clk 0:02:13]}  Nb6 {[%clk 0:02:18]} 19. h4 {[%clk 0:01:59]}  a4 {[%clk 0:02:13]} 20. Re2 {[%clk 0:01:25]}  Bf5 {[%clk 0:02:10]} 21. Rae1 {[%clk 0:01:24]}  Ra6 {[%clk 0:01:52]} 22. Nd3 {[%clk 0:00:59]}  Nc4 {[%clk 0:01:37]} 23. Nb4 {[%clk 0:00:55]}  Ra5 {[%clk 0:01:21]} 24. Qxb7 {[%clk 0:00:55]}  Bc8 {[%clk 0:00:45]} 25. Qc7 {[%clk 0:00:48]}  g5 {[%clk 0:00:35]} 26. Qxd8 {[%clk 0:00:46]}  Rxd8 {[%clk 0:00:36]} 27. Bc7 {[%clk 0:00:44]} 1-0


[Site "https://www.chess.com"]

[Event "Titled Tuesday Blitz August 16 Late 2022"]
[White "Bringas Gomez, Artai"]
[Black "Romero Ruscalleda, Josep"]
[WhiteFideId "24534064"]
[BlackFideId "2231859"]
[WhiteElo "2039"]
[BlackElo "2193"]
[Result "0-1"]
[Round "07"]
[TimeControl "180+1"]
[Date "2022.08.18"]
[WhiteClock "0:00:00"]
[BlackClock "0:00:00"]

1. e4 {[%clk 0:00:00]}  g6 {[%clk 0:00:00]} 2. f4 {[%clk 0:00:00]}  Bg7 {[%clk 0:00:00]} 3. d4 {[%clk 0:00:00]}  d6 {[%clk 0:00:00]} 4. Nc3 {[%clk 0:00:00]}  a6 {[%clk 0:00:00]} 5. Nf3 {[%clk 0:00:00]}  b5 {[%clk 0:00:00]} 6. Bd3 {[%clk 0:00:00]}  Nd7 {[%clk 0:00:00]} 7. O-O {[%clk 0:00:00]}  c5 {[%clk 0:00:00]} 8. Be3 {[%clk 0:00:00]}  Ngf6 {[%clk 0:00:00]} 9. h3 {[%clk 0:00:00]}  O-O {[%clk 0:00:00]} 10. e5 {[%clk 0:00:00]}  Ne8 {[%clk 0:00:00]} 11. dxc5 {[%clk 0:00:00]}  dxe5 {[%clk 0:00:00]} 12. Be4 {[%clk 0:00:00]}  Nc7 {[%clk 0:00:00]} 13. Bxa8 {[%clk 0:00:00]}  Nxa8 {[%clk 0:00:00]} 14. Nxe5 {[%clk 0:00:00]}  Nxe5 {[%clk 0:00:00]} 15. fxe5 {[%clk 0:00:00]}  Qc7 {[%clk 0:00:00]} 16. Qf3 {[%clk 0:00:00]}  Bb7 {[%clk 0:00:00]} 17. Nd5 {[%clk 0:00:00]}  Qxe5 {[%clk 0:00:00]} 18. Nf6+ {[%clk 0:00:00]}  Bxf6 {[%clk 0:00:00]} 19. Qxb7 {[%clk 0:00:00]}  Qxe3+ {[%clk 0:00:00]} 20. Kh1 {[%clk 0:00:00]}  Qxc5 {[%clk 0:00:00]} 21. c3 {[%clk 0:00:00]}  Qb6 {[%clk 0:00:00]} 22. Qd7 {[%clk 0:00:00]}  Nc7 {[%clk 0:00:00]} 23. Rad1 {[%clk 0:00:00]}  Ne6 {[%clk 0:00:00]} 24. Qd5 {[%clk 0:00:00]}  Rd8 {[%clk 0:00:00]} 25. Qe4 {[%clk 0:00:00]}  Rxd1 {[%clk 0:00:00]} 26. Rxd1 {[%clk 0:00:00]}  Qf2 {[%clk 0:00:00]} 27. Qa8+ {[%clk 0:00:00]}  Kg7 {[%clk 0:00:00]} 28. Qxa6 {[%clk 0:00:00]}  Qxb2 {[%clk 0:00:00]} 29. c4 {[%clk 0:00:00]}  bxc4 {[%clk 0:00:00]} 30. Qxc4 {[%clk 0:00:00]}  Nd4 {[%clk 0:00:00]} 31. a4 {[%clk 0:00:00]}  Ne2 {[%clk 0:00:00]} 32. a5 {[%clk 0:00:00]}  Ng3+ {[%clk 0:00:00]} 33. Kh2 {[%clk 0:00:00]}  Be5 {[%clk 0:00:00]} 34. Kg1 {[%clk 0:00:00]}  Qa3 {[%clk 0:00:00]} 35. a6 {[%clk 0:00:00]}  Qe3+ {[%clk 0:00:00]} 36. Kh2 {[%clk 0:00:00]}  Ne4+ {[%clk 0:00:00]} 37. Kh1 {[%clk 0:00:00]}  Nf2+ {[%clk 0:00:00]} 38. Kg1 {[%clk 0:00:00]}  Nxh3+ {[%clk 0:00:00]} 0-1


[Site "https://www.chess.com"]

[Event "Titled Tuesday Blitz August 16 Late 2022"]
[White "Buchenau, Frank"]
[Black "Vlassov, Nikolai"]
[WhiteFideId "4604350"]
[BlackFideId "4103360"]
[WhiteElo "2157"]
[BlackElo "2324"]
[Result "0-1"]
[Round "07"]
[TimeControl "180+1"]
[Date "2022.08.16"]
[WhiteClock "0:00:01"]
[BlackClock "0:00:05"]

1. e4 {[%clk 0:03:00]}  c5 {[%clk 0:02:59]} 2. Nf3 {[%clk 0:03:00]}  d6 {[%clk 0:02:57]} 3. Bb5+ {[%clk 0:02:59]}  Nd7 {[%clk 0:02:57]} 4. O-O {[%clk 0:02:59]}  a6 {[%clk 0:02:56]} 5. Bd3 {[%clk 0:02:58]}  g6 {[%clk 0:02:56]} 6. Re1 {[%clk 0:02:58]}  Bg7 {[%clk 0:02:56]} 7. c3 {[%clk 0:02:58]}  Ngf6 {[%clk 0:02:56]} 8. Bf1 {[%clk 0:02:53]}  O-O {[%clk 0:02:55]} 9. d4 {[%clk 0:02:53]}  e5 {[%clk 0:02:54]} 10. dxe5 {[%clk 0:02:50]}  dxe5 {[%clk 0:02:54]} 11. c4 {[%clk 0:02:50]}  Qc7 {[%clk 0:02:38]} 12. Nc3 {[%clk 0:02:49]}  h6 {[%clk 0:02:38]} 13. Be3 {[%clk 0:02:39]}  b6 {[%clk 0:02:35]} 14. Rc1 {[%clk 0:02:35]}  Bb7 {[%clk 0:02:34]} 15. h3 {[%clk 0:02:32]}  Rad8 {[%clk 0:02:34]} 16. Nd5 {[%clk 0:02:29]}  Qb8 {[%clk 0:02:24]} 17. Nd2 {[%clk 0:02:21]}  Nxd5 {[%clk 0:02:06]} 18. cxd5 {[%clk 0:02:19]}  f5 {[%clk 0:02:01]} 19. f3 {[%clk 0:02:03]}  Nf6 {[%clk 0:01:51]} 20. b4 {[%clk 0:01:59]}  cxb4 {[%clk 0:01:42]} 21. Bxb6 {[%clk 0:01:55]}  Rc8 {[%clk 0:01:41]} 22. Ba5 {[%clk 0:01:20]}  fxe4 {[%clk 0:01:32]} 23. fxe4 {[%clk 0:01:19]}  Qd6 {[%clk 0:01:26]} 24. Qb3 {[%clk 0:01:12]}  Nh5 {[%clk 0:00:45]} 25. Qxb4 {[%clk 0:01:09]}  Qxb4 {[%clk 0:00:27]} 26. Bxb4 {[%clk 0:01:08]}  Rfd8 {[%clk 0:00:26]} 27. Be7 {[%clk 0:00:49]}  Rd7 {[%clk 0:00:20]} 28. Rxc8+ {[%clk 0:00:46]}  Bxc8 {[%clk 0:00:20]} 29. Rc1 {[%clk 0:00:45]}  Bb7 {[%clk 0:00:19]} 30. d6 {[%clk 0:00:41]}  Bf8 {[%clk 0:00:18]} 31. Bc4+ {[%clk 0:00:38]}  Kg7 {[%clk 0:00:19]} 32. Be6 {[%clk 0:00:36]}  Bxe7 {[%clk 0:00:15]} 33. Bxd7 {[%clk 0:00:36]}  Bxd6 {[%clk 0:00:16]} 34. Nc4 {[%clk 0:00:35]}  Bc5+ {[%clk 0:00:15]} 35. Kh2 {[%clk 0:00:35]}  Bf2 {[%clk 0:00:14]} 36. g4 {[%clk 0:00:29]}  Nf4 {[%clk 0:00:12]} 37. Nxe5 {[%clk 0:00:27]}  Bxe4 {[%clk 0:00:12]} 38. Rc7 {[%clk 0:00:20]}  Kf6 {[%clk 0:00:12]} 39. Nc4 {[%clk 0:00:18]}  h5 {[%clk 0:00:11]} 40. Bc6 {[%clk 0:00:18]}  Bd3 {[%clk 0:00:10]} 41. Be8 {[%clk 0:00:14]}  h4 {[%clk 0:00:08]} 42. Rf7+ {[%clk 0:00:12]}  Kg5 {[%clk 0:00:07]} 43. Ne5 {[%clk 0:00:11]}  Bg3+ {[%clk 0:00:07]} 44. Kg1 {[%clk 0:00:11]}  Nxh3+ {[%clk 0:00:06]} 45. Kg2 {[%clk 0:00:10]}  Bxe5 {[%clk 0:00:06]} 46. Kxh3 {[%clk 0:00:09]}  Bc4 {[%clk 0:00:03]} 47. Bc6 {[%clk 0:00:04]}  Bxf7 {[%clk 0:00:02]} 48. Bb7 {[%clk 0:00:04]}  Be6 {[%clk 0:00:03]} 49. Bc6 {[%clk 0:00:04]}  Bxg4+ {[%clk 0:00:04]} 50. Kg2 {[%clk 0:00:03]}  h3+ {[%clk 0:00:04]} 51. Kh1 {[%clk 0:00:04]}  Bf3+ {[%clk 0:00:05]} 52. Bxf3 {[%clk 0:00:03]}  Kf4 {[%clk 0:00:05]} 53. Bb7 {[%clk 0:00:03]}  a5 {[%clk 0:00:05]} 54. a4 {[%clk 0:00:03]}  g5 {[%clk 0:00:04]} 55. Bc8 {[%clk 0:00:03]}  g4 {[%clk 0:00:05]} 56. Bd7 {[%clk 0:00:02]}  Kg3 {[%clk 0:00:05]} 57. Bc8 {[%clk 0:00:01]}  Kh4 {[%clk 0:00:05]} 58. Bd7 {[%clk 0:00:01]}  g3 {[%clk 0:00:05]} 0-1


[Site "https://www.chess.com"]

[Event "Titled Tuesday Blitz August 16 Late 2022"]
[White "Capp, Stephen"]
[Black "Martin Barcelo, Carles"]
[WhiteFideId "2027089"]
[BlackFideId "24561444"]
[WhiteElo "1920"]
[BlackElo "1922"]
[Result "0-1"]
[Round "07"]
[TimeControl "180+1"]
[Date "2022.08.18"]
[WhiteClock "0:00:00"]
[BlackClock "0:00:00"]

1. e4 {[%clk 0:00:00]}  d5 {[%clk 0:00:00]} 2. d4 {[%clk 0:00:00]}  dxe4 {[%clk 0:00:00]} 3. Nc3 {[%clk 0:00:00]}  e5 {[%clk 0:00:00]} 4. Bc4 {[%clk 0:00:00]}  Qxd4 {[%clk 0:00:00]} 5. Qe2 {[%clk 0:00:00]}  Nf6 {[%clk 0:00:00]} 6. Bd2 {[%clk 0:00:00]}  Bg4 {[%clk 0:00:00]} 7. f3 {[%clk 0:00:00]}  exf3 {[%clk 0:00:00]} 8. Nxf3 {[%clk 0:00:00]}  Bxf3 {[%clk 0:00:00]} 9. gxf3 {[%clk 0:00:00]}  Bd6 {[%clk 0:00:00]} 10. O-O-O {[%clk 0:00:00]}  Qh4 {[%clk 0:00:00]} 11. Rhg1 {[%clk 0:00:00]}  Nbd7 {[%clk 0:00:00]} 12. Rxg7 {[%clk 0:00:00]}  O-O-O {[%clk 0:00:00]} 13. Rxf7 {[%clk 0:00:00]}  Rhf8 {[%clk 0:00:00]} 14. Rg7 {[%clk 0:00:00]}  Rde8 {[%clk 0:00:00]} 15. Bg5 {[%clk 0:00:00]}  Qh5 {[%clk 0:00:00]} 16. Nd5 {[%clk 0:00:00]}  Nxd5 {[%clk 0:00:00]} 17. Bxd5 {[%clk 0:00:00]}  h6 {[%clk 0:00:00]} 18. Qb5 {[%clk 0:00:00]}  Nb6 {[%clk 0:00:00]} 19. Be3 {[%clk 0:00:00]}  a6 {[%clk 0:00:00]} 20. Qb3 {[%clk 0:00:00]}  Nxd5 {[%clk 0:00:00]} 21. Qxd5 {[%clk 0:00:00]}  Qxf3 {[%clk 0:00:00]} 22. Qxf3 {[%clk 0:00:00]}  Rxf3 {[%clk 0:00:00]} 23. Bxh6 {[%clk 0:00:00]}  Rh3 {[%clk 0:00:00]} 24. Rf1 {[%clk 0:00:00]}  Rxh6 {[%clk 0:00:00]} 25. a3 {[%clk 0:00:00]}  Rxh2 {[%clk 0:00:00]} 26. Rff7 {[%clk 0:00:00]}  e4 {[%clk 0:00:00]} 0-1


[Site "https://www.chess.com"]

[Event "Titled Tuesday Blitz August 16 Late 2022"]
[White "Djordjevic, Vuk"]
[Black "Van Dael, Siem"]
[WhiteFideId "902098"]
[BlackFideId "1049771"]
[WhiteElo "2456"]
[BlackElo "2110"]
[Result "1-0"]
[Round "07"]
[TimeControl "180+1"]
[Date "2022.08.18"]
[WhiteClock "0:00:00"]
[BlackClock "0:00:00"]

1. g3 {[%clk 0:00:00]}  Nf6 {[%clk 0:00:00]} 2. b3 {[%clk 0:00:00]}  g6 {[%clk 0:00:00]} 3. Bb2 {[%clk 0:00:00]}  Bg7 {[%clk 0:00:00]} 4. Nc3 {[%clk 0:00:00]}  O-O {[%clk 0:00:00]} 5. Bg2 {[%clk 0:00:00]}  c6 {[%clk 0:00:00]} 6. Nf3 {[%clk 0:00:00]}  d5 {[%clk 0:00:00]} 7. e3 {[%clk 0:00:00]}  Nbd7 {[%clk 0:00:00]} 8. O-O {[%clk 0:00:00]}  e5 {[%clk 0:00:00]} 9. d3 {[%clk 0:00:00]}  Re8 {[%clk 0:00:00]} 10. a4 {[%clk 0:00:00]}  a5 {[%clk 0:00:00]} 11. Ne2 {[%clk 0:00:00]}  h6 {[%clk 0:00:00]} 12. c4 {[%clk 0:00:00]}  e4 {[%clk 0:00:00]} 13. dxe4 {[%clk 0:00:00]}  dxe4 {[%clk 0:00:00]} 14. Nd2 {[%clk 0:00:00]}  Nc5 {[%clk 0:00:00]} 15. Bd4 {[%clk 0:00:00]}  Qe7 {[%clk 0:00:00]} 16. Nc3 {[%clk 0:00:00]}  Bf5 {[%clk 0:00:00]} 17. Rb1 {[%clk 0:00:00]}  Rad8 {[%clk 0:00:00]} 18. Qc2 {[%clk 0:00:00]}  Nd3 {[%clk 0:00:00]} 19. Bxf6 {[%clk 0:00:00]}  Bxf6 {[%clk 0:00:00]} 20. Bxe4 {[%clk 0:00:00]}  Bxc3 {[%clk 0:00:00]} 21. Bxf5 {[%clk 0:00:00]}  Bxd2 {[%clk 0:00:00]} 22. Bxd3 {[%clk 0:00:00]}  Bxe3 {[%clk 0:00:00]} 23. Bxg6 {[%clk 0:00:00]}  Rd2 {[%clk 0:00:00]} 24. Qf5 {[%clk 0:00:00]}  Rxf2 {[%clk 0:00:00]} 25. Rxf2 {[%clk 0:00:00]}  Bxf2+ {[%clk 0:00:00]} 26. Kxf2 {[%clk 0:00:00]}  Qe3+ {[%clk 0:00:00]} 27. Kg2 {[%clk 0:00:00]}  fxg6 {[%clk 0:00:00]} 28. Qxg6+ {[%clk 0:00:00]}  Kh8 {[%clk 0:00:00]} 29. Qf6+ {[%clk 0:00:00]}  Kg8 {[%clk 0:00:00]} 30. Rf1 {[%clk 0:00:00]}  Qe4+ {[%clk 0:00:00]} 31. Rf3 {[%clk 0:00:00]}  Qe2+ {[%clk 0:00:00]} 32. Kh3 {[%clk 0:00:00]}  Qe6+ {[%clk 0:00:00]} 33. Qxe6+ {[%clk 0:00:00]}  Rxe6 {[%clk 0:00:00]} 34. Kg4 {[%clk 0:00:00]}  Kg7 {[%clk 0:00:00]} 35. Kf5 {[%clk 0:00:00]}  Re7 {[%clk 0:00:00]} 36. Rd3 {[%clk 0:00:00]}  Kf7 {[%clk 0:00:00]} 37. Rd6 {[%clk 0:00:00]}  Kg7 {[%clk 0:00:00]} 38. Rg6+ {[%clk 0:00:00]}  Kh7 {[%clk 0:00:00]} 39. Re6 {[%clk 0:00:00]}  Rf7+ {[%clk 0:00:00]} 40. Ke4 {[%clk 0:00:00]}  Rf2 {[%clk 0:00:00]} 41. Re7+ {[%clk 0:00:00]}  Kg6 {[%clk 0:00:00]} 42. Rxb7 {[%clk 0:00:00]}  Rxh2 {[%clk 0:00:00]} 43. Rb6 {[%clk 0:00:00]}  Kg5 {[%clk 0:00:00]} 44. Rxc6 {[%clk 0:00:00]}  h5 {[%clk 0:00:00]} 45. Kf3 {[%clk 0:00:00]}  Rb2 {[%clk 0:00:00]} 46. Rc5+ {[%clk 0:00:00]}  Kg6 {[%clk 0:00:00]} 47. Rb5 {[%clk 0:00:00]}  Kf6 {[%clk 0:00:00]} 48. c5 {[%clk 0:00:00]}  Rc2 {[%clk 0:00:00]} 49. Kf4 {[%clk 0:00:00]}  Ke6 {[%clk 0:00:00]} 50. Rxa5 {[%clk 0:00:00]}  Rc3 {[%clk 0:00:00]} 51. Rb5 {[%clk 0:00:00]}  Kd5 {[%clk 0:00:00]} 52. a5 {[%clk 0:00:00]} 1-0


[Site "https://www.chess.com"]

[Event "Titled Tuesday Blitz August 16 Late 2022"]
[White "Dubov, Daniil"]
[Black "Yurovskykh, Oleksandr"]
[WhiteFideId "24126055"]
[BlackFideId "14134020"]
[WhiteElo "2791"]
[BlackElo "2292"]
[Result "0-1"]
[Round "07"]
[TimeControl "180+1"]
[Date "2022.08.18"]
[WhiteClock "0:00:00"]
[BlackClock "0:00:00"]

1. h4 {[%clk 0:00:00]}  h5 {[%clk 0:00:00]} 2. Rh3 {[%clk 0:00:00]}  Rh6 {[%clk 0:00:00]} 3. Rd3 {[%clk 0:00:00]}  Rd6 {[%clk 0:00:00]} 4. e4 {[%clk 0:00:00]}  Rxd3 {[%clk 0:00:00]} 5. Bxd3 {[%clk 0:00:00]}  g6 {[%clk 0:00:00]} 6. Bc4 {[%clk 0:00:00]}  Bg7 {[%clk 0:00:00]} 7. d4 {[%clk 0:00:00]}  d6 {[%clk 0:00:00]} 8. Nc3 {[%clk 0:00:00]}  a6 {[%clk 0:00:00]} 9. Qf3 {[%clk 0:00:00]}  e6 {[%clk 0:00:00]} 10. Bg5 {[%clk 0:00:00]}  Qd7 {[%clk 0:00:00]} 11. O-O-O {[%clk 0:00:00]}  b5 {[%clk 0:00:00]} 12. e5 {[%clk 0:00:00]}  d5 {[%clk 0:00:00]} 13. Bd3 {[%clk 0:00:00]}  Nc6 {[%clk 0:00:00]} 14. Nce2 {[%clk 0:00:00]}  Nb4 {[%clk 0:00:00]} 15. Nh3 {[%clk 0:00:00]}  Nxd3+ {[%clk 0:00:00]} 16. Rxd3 {[%clk 0:00:00]}  b4 {[%clk 0:00:00]} 17. Nhf4 {[%clk 0:00:00]}  a5 {[%clk 0:00:00]} 18. Re3 {[%clk 0:00:00]}  Ba6 {[%clk 0:00:00]} 19. Kb1 {[%clk 0:00:00]}  Ne7 {[%clk 0:00:00]} 20. Nc1 {[%clk 0:00:00]}  Nf5 {[%clk 0:00:00]} 21. Nb3 {[%clk 0:00:00]}  Qb5 {[%clk 0:00:00]} 22. Re1 {[%clk 0:00:00]}  Bf8 {[%clk 0:00:00]} 23. Rd1 {[%clk 0:00:00]}  a4 {[%clk 0:00:00]} 24. Nc1 {[%clk 0:00:00]}  c5 {[%clk 0:00:00]} 25. dxc5 {[%clk 0:00:00]}  Qxc5 {[%clk 0:00:00]} 26. Nxd5 {[%clk 0:00:00]}  exd5 {[%clk 0:00:00]} 27. Rxd5 {[%clk 0:00:00]}  Bb7 {[%clk 0:00:00]} 28. Rxc5 {[%clk 0:00:00]}  Bxf3 {[%clk 0:00:00]} 29. Rc7 {[%clk 0:00:00]}  Bxg2 {[%clk 0:00:00]} 30. Nd3 {[%clk 0:00:00]}  Be4 {[%clk 0:00:00]} 31. Nxb4 {[%clk 0:00:00]}  Bxb4 {[%clk 0:00:00]} 32. Rc4 {[%clk 0:00:00]}  Be7 {[%clk 0:00:00]} 33. Bxe7 {[%clk 0:00:00]}  Bxc2+ {[%clk 0:00:00]} 34. Kxc2 {[%clk 0:00:00]}  Kxe7 {[%clk 0:00:00]} 35. a3 {[%clk 0:00:00]}  Ke6 {[%clk 0:00:00]} 36. Rc5 {[%clk 0:00:00]}  Rd8 {[%clk 0:00:00]} 37. Kc3 {[%clk 0:00:00]}  Rd4 {[%clk 0:00:00]} 38. Rc6+ {[%clk 0:00:00]}  Kxe5 {[%clk 0:00:00]} 39. Rc5+ {[%clk 0:00:00]}  Rd5 {[%clk 0:00:00]} 40. Rc4 {[%clk 0:00:00]}  Ra5 {[%clk 0:00:00]} 41. b4 {[%clk 0:00:00]}  axb3 {[%clk 0:00:00]} 42. Kxb3 {[%clk 0:00:00]}  Nd4+ {[%clk 0:00:00]} 43. Kb4 {[%clk 0:00:00]}  Rb5+ {[%clk 0:00:00]} 44. Ka4 {[%clk 0:00:00]}  Rb2 {[%clk 0:00:00]} 45. f4+ {[%clk 0:00:00]}  Kd5 {[%clk 0:00:00]} 46. Rc7 {[%clk 0:00:00]}  f6 {[%clk 0:00:00]} 47. Rg7 {[%clk 0:00:00]}  Rg2 {[%clk 0:00:00]} 48. Kb4 {[%clk 0:00:00]}  Rg4 {[%clk 0:00:00]} 49. Rd7+ {[%clk 0:00:00]}  Ke4 {[%clk 0:00:00]} 50. a4 {[%clk 0:00:00]}  Rxf4 {[%clk 0:00:00]} 51. Kc5 {[%clk 0:00:00]}  Ne6+ {[%clk 0:00:00]} 52. Kb6 {[%clk 0:00:00]}  Ke5 {[%clk 0:00:00]} 53. a5 {[%clk 0:00:00]}  Rxh4 {[%clk 0:00:00]} 54. a6 {[%clk 0:00:00]}  Rb4+ {[%clk 0:00:00]} 55. Ka5 {[%clk 0:00:00]}  Rb1 {[%clk 0:00:00]} 56. a7 {[%clk 0:00:00]}  Ra1+ {[%clk 0:00:00]} 57. Kb6 {[%clk 0:00:00]}  h4 {[%clk 0:00:00]} 58. Rd1 {[%clk 0:00:00]}  Rxa7 {[%clk 0:00:00]} 59. Kxa7 {[%clk 0:00:00]}  g5 {[%clk 0:00:00]} 60. Kb6 {[%clk 0:00:00]}  g4 {[%clk 0:00:00]} 61. Kb5 {[%clk 0:00:00]}  g3 {[%clk 0:00:00]} 62. Kc4 {[%clk 0:00:00]}  g2 {[%clk 0:00:00]} 63. Kd3 {[%clk 0:00:00]}  h3 {[%clk 0:00:00]} 64. Re1+ {[%clk 0:00:00]}  Kf5 {[%clk 0:00:00]} 65. Ke2 {[%clk 0:00:00]}  h2 {[%clk 0:00:00]} 66. Kf2 {[%clk 0:00:00]}  g1=Q+ {[%clk 0:00:00]} 67. Rxg1 {[%clk 0:00:00]}  hxg1=Q+ {[%clk 0:00:00]} 68. Kxg1 {[%clk 0:00:00]}  Ke4 {[%clk 0:00:00]} 69. Kf2 {[%clk 0:00:00]}  f5 {[%clk 0:00:00]} 70. Kg3 {[%clk 0:00:00]}  f4+ {[%clk 0:00:00]} 71. Kg4 {[%clk 0:00:00]}  f3 {[%clk 0:00:00]} 72. Kh5 {[%clk 0:00:00]}  Nd4 {[%clk 0:00:00]} 73. Kg6 {[%clk 0:00:00]}  Ke3 {[%clk 0:00:00]} 74. Kh7 {[%clk 0:00:00]}  f2 {[%clk 0:00:00]} 75. Kh8 {[%clk 0:00:00]}  Ne2 {[%clk 0:00:00]} 76. Kh7 {[%clk 0:00:00]}  f1=B {[%clk 0:00:00]} 77. Kg8 {[%clk 0:00:00]}  Bg2 {[%clk 0:00:00]} 78. Kh8 {[%clk 0:00:00]}  Be4 {[%clk 0:00:00]} 79. Kg7 {[%clk 0:00:00]}  Kf4 {[%clk 0:00:00]} 80. Kf6 {[%clk 0:00:00]}  Nd4 {[%clk 0:00:00]} 81. Ke7 {[%clk 0:00:00]}  Ke5 {[%clk 0:00:00]} 82. Kd7 {[%clk 0:00:00]}  Ne6 {[%clk 0:00:00]} 83. Ke7 {[%clk 0:00:00]}  Bc6 {[%clk 0:00:00]} 84. Kf7 {[%clk 0:00:00]}  Nf4 {[%clk 0:00:00]} 85. Ke7 {[%clk 0:00:00]}  Nd5+ {[%clk 0:00:00]} 86. Kf7 {[%clk 0:00:00]}  Bd7 {[%clk 0:00:00]} 87. Kg6 {[%clk 0:00:00]}  Kf4 {[%clk 0:00:00]} 88. Kg7 {[%clk 0:00:00]}  Kg5 {[%clk 0:00:00]} 89. Kf7 {[%clk 0:00:00]}  Kf5 {[%clk 0:00:00]} 90. Kf8 {[%clk 0:00:00]}  Kf6 {[%clk 0:00:00]} 91. Kg8 {[%clk 0:00:00]}  Ne7+ {[%clk 0:00:00]} 92. Kf8 {[%clk 0:00:00]}  Ng6+ {[%clk 0:00:00]} 93. Kg8 {[%clk 0:00:00]}  Be6+ {[%clk 0:00:00]} 94. Kh7 {[%clk 0:00:00]}  Bf7 {[%clk 0:00:00]} 95. Kh6 {[%clk 0:00:00]}  Bg8 {[%clk 0:00:00]} 96. Kh5 {[%clk 0:00:00]}  Ne5 {[%clk 0:00:00]} 97. Kh6 {[%clk 0:00:00]}  Ng4+ {[%clk 0:00:00]} 98. Kh5 {[%clk 0:00:00]}  Kf5 {[%clk 0:00:00]} 99. Kh4 {[%clk 0:00:00]}  Kf4 {[%clk 0:00:00]} 100. Kh3 {[%clk 0:00:00]}  Bd5 {[%clk 0:00:00]} 101. Kh4 {[%clk 0:00:00]}  Bf7 {[%clk 0:00:00]} 102. Kh3 {[%clk 0:00:00]}  Ne3 {[%clk 0:00:00]} 103. Kh4 {[%clk 0:00:00]}  Ng2+ {[%clk 0:00:00]} 104. Kh3 {[%clk 0:00:00]}  Kf3 {[%clk 0:00:00]} 105. Kh2 {[%clk 0:00:00]}  Kf2 {[%clk 0:00:00]} 106. Kh3 {[%clk 0:00:00]}  Be6+ {[%clk 0:00:00]} 107. Kh2 {[%clk 0:00:00]}  Bg4 {[%clk 0:00:00]} 108. Kh1 {[%clk 0:00:00]}  Ne3 {[%clk 0:00:00]} 109. Kh2 {[%clk 0:00:00]}  Nf1+ {[%clk 0:00:00]} 110. Kh1 {[%clk 0:00:00]}  Bf3# {[%clk 0:00:00]} 0-1


[Site "https://www.chess.com"]